[Event "Early-Titled-Tuesday-Blitz-March-12-2024"]
[Site "Chess.com"]
[Date "2024.03.12"]
[Round "10"]
[White "Danny_Billiards"]
[Black "snowlord"]
[Result "0-1"]
[WhiteElo "2793"]
[BlackElo "2915"]
[TimeControl "180+1"]
[EndTime "9:53:49 PDT"]
[Termination "snowlord won on time"]

1. d4 {[%clk 0:03:00.9]} 1... f5 {[%clk 0:02:58.7]} 2. g3 {[%clk 0:03:00.6]}
2... Nf6 {[%clk 0:02:58.1]} 3. Bg2 {[%clk 0:03:01.4]} 3... e6 {[%clk 0:02:58.5]}
4. Nd2 {[%clk 0:03:02.1]} 4... d5 {[%clk 0:02:59.2]} 5. Ndf3 {[%clk 0:03:01.1]}
5... c5 {[%clk 0:02:58.4]} 6. c3 {[%clk 0:02:55.8]} 6... Nc6 {[%clk 0:02:58.8]}
7. Nh3 {[%clk 0:02:55.8]} 7... Bd6 {[%clk 0:02:54.7]} 8. Bf4 {[%clk 0:02:55.6]}
8... Be7 {[%clk 0:02:55.1]} 9. O-O {[%clk 0:02:51.2]} 9... O-O {[%clk
0:02:55.4]} 10. Bg5 {[%clk 0:02:48.6]} 10... h6 {[%clk 0:02:41.6]} 11. Bxf6
{[%clk 0:02:47.1]} 11... Rxf6 {[%clk 0:02:41.1]} 12. dxc5 {[%clk 0:02:40.6]}
12... Bxc5 {[%clk 0:02:33.7]} 13. Nf4 {[%clk 0:02:40.7]} 13... a5 {[%clk
0:02:22.6]} 14. c4 {[%clk 0:02:19.6]} 14... d4 {[%clk 0:02:03.2]} 15. Nd2 {[%clk
0:01:54.6]} 15... e5 {[%clk 0:02:00.9]} 16. Nd5 {[%clk 0:01:53.8]} 16... Rf7
{[%clk 0:01:57.6]} 17. e4 {[%clk 0:01:50.2]} 17... dxe3 {[%clk 0:01:51.9]} 18.
Nxe3 {[%clk 0:01:50.3]} 18... e4 {[%clk 0:01:47.1]} 19. Nd5 {[%clk 0:01:40.2]}
19... Be6 {[%clk 0:01:22.2]} 20. Nf4 {[%clk 0:01:30.5]} 20... Qf6 {[%clk
0:01:13.9]} 21. Nxe6 {[%clk 0:01:04.1]} 21... Qxe6 {[%clk 0:01:14]} 22. Nb3
{[%clk 0:01:00]} 22... Ba7 {[%clk 0:01:10.9]} 23. Qd5 {[%clk 0:00:57.9]} 23...
Re8 {[%clk 0:01:06.5]} 24. Rad1 {[%clk 0:00:42.9]} 24... a4 {[%clk 0:01:03.4]}
25. Qxe6 {[%clk 0:00:41.4]} 25... Rxe6 {[%clk 0:01:03.4]} 26. Nc1 {[%clk
0:00:42.2]} 26... Ne5 {[%clk 0:00:58]} 27. b3 {[%clk 0:00:41.8]} 27... a3 {[%clk
0:00:55.9]} 28. Rd5 {[%clk 0:00:40.6]} 28... Nc6 {[%clk 0:00:41.1]} 29. Ne2
{[%clk 0:00:40.5]} 29... Nb4 {[%clk 0:00:41.2]} 30. Ra5 {[%clk 0:00:38.9]} 30...
Ra6 {[%clk 0:00:38.8]} 31. Rxa6 {[%clk 0:00:37.3]} 31... bxa6 {[%clk 0:00:39.7]}
32. Rd1 {[%clk 0:00:34]} 32... g5 {[%clk 0:00:29.2]} 33. Kf1 {[%clk 0:00:32.3]}
33... Kg7 {[%clk 0:00:27.8]} 34. Nc3 {[%clk 0:00:30.8]} 34... Bc5 {[%clk
0:00:25.4]} 35. g4 {[%clk 0:00:30.1]} 35... fxg4 {[%clk 0:00:22.9]} 36. Nxe4
{[%clk 0:00:30.4]} 36... Ba7 {[%clk 0:00:22.3]} 37. Rd2 {[%clk 0:00:30.6]} 37...
a5 {[%clk 0:00:20.2]} 38. Nd6 {[%clk 0:00:30.9]} 38... Rf4 {[%clk 0:00:18.1]}
39. Nb5 {[%clk 0:00:27.1]} 39... Bc5 {[%clk 0:00:18.1]} 40. Nxa3 {[%clk
0:00:26.2]} 40... Nd3 {[%clk 0:00:16.1]} 41. Nc2 {[%clk 0:00:14.8]} 41... Nxf2
{[%clk 0:00:15.4]} 42. Ke1 {[%clk 0:00:15.1]} 42... h5 {[%clk 0:00:14.6]} 43. a3
{[%clk 0:00:14.8]} 43... Ne4 {[%clk 0:00:12.5]} 44. Bxe4 {[%clk 0:00:13.8]}
44... Rxe4+ {[%clk 0:00:13.4]} 45. Re2 {[%clk 0:00:14.7]} 45... Rxe2+ {[%clk
0:00:06.8]} 46. Kxe2 {[%clk 0:00:15.6]} 46... Bd6 {[%clk 0:00:07.7]} 47. b4
{[%clk 0:00:16.2]} 47... axb4 {[%clk 0:00:08.4]} 48. axb4 {[%clk 0:00:17.1]}
48... Bxh2 {[%clk 0:00:08.9]} 49. Ne3 {[%clk 0:00:15.4]} 49... Kf6 {[%clk
0:00:06.9]} 50. c5 {[%clk 0:00:14.6]} 50... Ke6 {[%clk 0:00:07.5]} 51. b5 {[%clk
0:00:14.8]} 51... Be5 {[%clk 0:00:06.3]} 52. b6 {[%clk 0:00:12.6]} 52... Kd7
{[%clk 0:00:06.7]} 53. Kd3 {[%clk 0:00:05.7]} 53... g3 {[%clk 0:00:06]} 54. Ke4
{[%clk 0:00:05.9]} 54... Bf4 {[%clk 0:00:06.7]} 55. Ng2 {[%clk 0:00:05.6]} 55...
Kc6 {[%clk 0:00:07.4]} 56. Kf3 {[%clk 0:00:04.2]} 56... h4 {[%clk 0:00:07.1]}
57. Kg4 {[%clk 0:00:02.3]} 57... Kxc5 {[%clk 0:00:05.1]} 58. b7 {[%clk
0:00:01.7]} 58... Bb8 {[%clk 0:00:04.6]} 59. Kxg5 {[%clk 0:00:02.3]} 59... h3
{[%clk 0:00:04.9]} 0-1

[Event "Early-Titled-Tuesday-Blitz-March-12-2024"]
[Site "Chess.com"]
[Date "2024.03.12"]
[Round "10"]
[White "andrew-blr"]
[Black "Kirill_Klukin"]
[Result "1/2-1/2"]
[WhiteElo "2633"]
[BlackElo "2805"]
[TimeControl "180+1"]
[EndTime "9:53:54 PDT"]
[Termination "Game drawn - insufficient material"]

1. d4 {[%clk 0:03:00.9]} 1... Nf6 {[%clk 0:02:59.5]} 2. c4 {[%clk 0:03:00.7]}
2... Nc6 {[%clk 0:03:00.1]} 3. e3 {[%clk 0:03:00]} 3... e6 {[%clk 0:03:00.1]} 4.
Nc3 {[%clk 0:02:59.7]} 4... Bb4 {[%clk 0:02:59.7]} 5. Ne2 {[%clk 0:02:59.7]}
5... O-O {[%clk 0:03:00.2]} 6. a3 {[%clk 0:02:59.8]} 6... Bxc3+ {[%clk
0:02:58.7]} 7. Nxc3 {[%clk 0:03:00.7]} 7... d6 {[%clk 0:02:59.6]} 8. Be2 {[%clk
0:03:00.6]} 8... e5 {[%clk 0:02:59.8]} 9. O-O {[%clk 0:03:00.5]} 9... Bf5 {[%clk
0:02:54.8]} 10. b4 {[%clk 0:03:00]} 10... exd4 {[%clk 0:02:51]} 11. exd4 {[%clk
0:02:59.3]} 11... Ne4 {[%clk 0:02:51.8]} 12. Nxe4 {[%clk 0:02:53.2]} 12... Bxe4
{[%clk 0:02:52.7]} 13. d5 {[%clk 0:02:45.2]} 13... Ne5 {[%clk 0:02:48.7]} 14.
Bb2 {[%clk 0:02:43.2]} 14... Qg5 {[%clk 0:02:46.1]} 15. f3 {[%clk 0:02:40.7]}
15... Bd3 {[%clk 0:02:37.5]} 16. f4 {[%clk 0:02:12.9]} 16... Bxe2 {[%clk
0:02:33.4]} 17. Qxe2 {[%clk 0:02:12.7]} 17... Qg4 {[%clk 0:02:33.9]} 18. Qc2
{[%clk 0:01:57.1]} 18... Nd7 {[%clk 0:02:27.5]} 19. h3 {[%clk 0:01:46.5]} 19...
Qg6 {[%clk 0:02:18]} 20. f5 {[%clk 0:01:45.8]} 20... Qh5 {[%clk 0:02:18.3]} 21.
f6 {[%clk 0:01:45.6]} 21... Rfe8 {[%clk 0:02:15]} 22. Rae1 {[%clk 0:01:37.5]}
22... gxf6 {[%clk 0:02:06]} 23. Qf2 {[%clk 0:01:32.3]} 23... Qg6 {[%clk
0:02:00.8]} 24. Rxe8+ {[%clk 0:01:07]} 24... Rxe8 {[%clk 0:02:00.5]} 25. Bxf6
{[%clk 0:01:05.2]} 25... Nxf6 {[%clk 0:01:42.8]} 26. Qxf6 {[%clk 0:01:06.1]}
26... Qxf6 {[%clk 0:01:42]} 27. Rxf6 {[%clk 0:01:05.5]} 27... Re4 {[%clk
0:01:42.7]} 28. c5 {[%clk 0:01:04.7]} 28... Kg7 {[%clk 0:01:39.7]} 29. Rf3
{[%clk 0:01:00.4]} 29... Rd4 {[%clk 0:01:33.7]} 30. cxd6 {[%clk 0:00:58.4]}
30... cxd6 {[%clk 0:01:33.6]} 31. Rc3 {[%clk 0:00:58.5]} 31... Rxd5 {[%clk
0:01:29.1]} 32. Rc7 {[%clk 0:00:58.3]} 32... Rb5 {[%clk 0:01:29.9]} 33. Kf2
{[%clk 0:00:58.3]} 33... Kf6 {[%clk 0:01:27.9]} 34. Ke3 {[%clk 0:00:58.2]} 34...
a5 {[%clk 0:01:27.7]} 35. bxa5 {[%clk 0:00:55.6]} 35... Rxa5 {[%clk 0:01:28.4]}
36. Rxb7 {[%clk 0:00:54.4]} 36... Rxa3+ {[%clk 0:01:29]} 37. Kf4 {[%clk
0:00:54.2]} 37... Ra4+ {[%clk 0:01:27.7]} 38. Ke3 {[%clk 0:00:50.3]} 38... h5
{[%clk 0:01:27.9]} 39. Rb5 {[%clk 0:00:47.2]} 39... h4 {[%clk 0:01:27.5]} 40.
Kf3 {[%clk 0:00:44.5]} 40... Ke6 {[%clk 0:01:26.2]} 41. Rb6 {[%clk 0:00:43.8]}
41... Ke5 {[%clk 0:01:23.4]} 42. Rb7 {[%clk 0:00:43.3]} 42... Ke6 {[%clk
0:01:18.5]} 43. Rb6 {[%clk 0:00:43]} 43... f5 {[%clk 0:01:18.8]} 44. Rb8 {[%clk
0:00:41.1]} 44... Ra3+ {[%clk 0:00:51.9]} 45. Kf4 {[%clk 0:00:37.8]} 45... Ra4+
{[%clk 0:00:51.3]} 46. Kf3 {[%clk 0:00:37.9]} 46... Ra3+ {[%clk 0:00:51.7]} 47.
Kf4 {[%clk 0:00:38.2]} 47... Rg3 {[%clk 0:00:52.4]} 48. Re8+ {[%clk 0:00:30.2]}
48... Kd5 {[%clk 0:00:52.6]} 49. Rh8 {[%clk 0:00:29.5]} 49... Rxg2 {[%clk
0:00:51.2]} 50. Kxf5 {[%clk 0:00:26.4]} 50... Rf2+ {[%clk 0:00:36.9]} 51. Kg5
{[%clk 0:00:26.2]} 51... Ke4 {[%clk 0:00:20.4]} 52. Rxh4+ {[%clk 0:00:25.3]}
52... Ke3 {[%clk 0:00:20.7]} 53. Rh6 {[%clk 0:00:25.1]} 53... d5 {[%clk
0:00:21.1]} 54. Rd6 {[%clk 0:00:24.4]} 54... d4 {[%clk 0:00:21.3]} 55. h4 {[%clk
0:00:24.6]} 55... d3 {[%clk 0:00:18.5]} 56. h5 {[%clk 0:00:24.9]} 56... Rg2+
{[%clk 0:00:19.1]} 57. Kf6 {[%clk 0:00:21.1]} 57... Rg4 {[%clk 0:00:07.7]} 58.
h6 {[%clk 0:00:16.7]} 58... Rh4 {[%clk 0:00:03.5]} 59. Kg7 {[%clk 0:00:15.5]}
59... d2 {[%clk 0:00:04]} 60. Rxd2 {[%clk 0:00:14.3]} 60... Kxd2 {[%clk
0:00:04.2]} 61. h7 {[%clk 0:00:14.8]} 61... Rg4+ {[%clk 0:00:04.9]} 62. Kf7
{[%clk 0:00:14.7]} 62... Rf4+ {[%clk 0:00:04.9]} 63. Kg7 {[%clk 0:00:14.9]}
63... Rg4+ {[%clk 0:00:05.5]} 64. Kf7 {[%clk 0:00:15.2]} 64... Rh4 {[%clk
0:00:06]} 65. Kg7 {[%clk 0:00:15.3]} 65... Ke3 {[%clk 0:00:06.6]} 66. h8=Q
{[%clk 0:00:15.3]} 66... Rxh8 {[%clk 0:00:07.5]} 67. Kxh8 {[%clk 0:00:15.3]}
1/2-1/2

[Event "Early-Titled-Tuesday-Blitz-March-12-2024"]
[Site "Chess.com"]
[Date "2024.03.12"]
[Round "10"]
[White "PLAYER_2006_M"]
[Black "mishanick"]
[Result "0-1"]
[WhiteElo "2989"]
[BlackElo "3104"]
[TimeControl "180+1"]
[EndTime "9:53:55 PDT"]
[Termination "mishanick won by resignation"]

1. e4 {[%clk 0:03:00.9]} 1... c5 {[%clk 0:03:00.2]} 2. Nf3 {[%clk 0:03:01.3]}
2... Nc6 {[%clk 0:02:59.9]} 3. Nc3 {[%clk 0:03:00.6]} 3... Nf6 {[%clk
0:03:00.2]} 4. Bb5 {[%clk 0:03:00]} 4... d6 {[%clk 0:02:58.1]} 5. e5 {[%clk
0:02:58]} 5... Nd7 {[%clk 0:02:57.4]} 6. exd6 {[%clk 0:02:57.1]} 6... exd6
{[%clk 0:02:58.3]} 7. d4 {[%clk 0:02:55.2]} 7... Be7 {[%clk 0:02:55.5]} 8. O-O
{[%clk 0:02:54.8]} 8... O-O {[%clk 0:02:54]} 9. Nd5 {[%clk 0:02:54.1]} 9... Nb6
{[%clk 0:02:37.6]} 10. Nxe7+ {[%clk 0:02:41.3]} 10... Qxe7 {[%clk 0:02:30.9]}
11. h3 {[%clk 0:02:39.6]} 11... Bf5 {[%clk 0:02:23.6]} 12. Re1 {[%clk
0:02:31.9]} 12... Qc7 {[%clk 0:02:23.9]} 13. c3 {[%clk 0:02:23]} 13... a6 {[%clk
0:02:20.9]} 14. Bf1 {[%clk 0:02:20]} 14... Rae8 {[%clk 0:02:19.3]} 15. Bf4
{[%clk 0:02:14.9]} 15... Rxe1 {[%clk 0:02:16.4]} 16. Qxe1 {[%clk 0:02:15]} 16...
cxd4 {[%clk 0:02:16.2]} 17. Rd1 {[%clk 0:02:02]} 17... Nd5 {[%clk 0:01:59]} 18.
Nxd4 {[%clk 0:01:53.8]} 18... Nxd4 {[%clk 0:01:57.7]} 19. Rxd4 {[%clk
0:01:54.7]} 19... Nxf4 {[%clk 0:01:58.1]} 20. Rxf4 {[%clk 0:01:54.3]} 20... Be6
{[%clk 0:01:58.6]} 21. a3 {[%clk 0:01:52.9]} 21... Qc5 {[%clk 0:01:54.8]} 22.
Rd4 {[%clk 0:01:52.2]} 22... Rd8 {[%clk 0:01:53.2]} 23. Qe3 {[%clk 0:01:50.8]}
23... g6 {[%clk 0:01:52.1]} 24. g3 {[%clk 0:01:49.8]} 24... Rd7 {[%clk
0:01:50.2]} 25. Bg2 {[%clk 0:01:49.3]} 25... h5 {[%clk 0:01:48.1]} 26. h4 {[%clk
0:01:48.1]} 26... a5 {[%clk 0:01:42.9]} 27. Kh2 {[%clk 0:01:46.4]} 27... b6
{[%clk 0:01:43.2]} 28. Qf4 {[%clk 0:01:36.8]} 28... Kg7 {[%clk 0:01:43.1]} 29.
Rd3 {[%clk 0:01:30.1]} 29... Qe5 {[%clk 0:01:33.3]} 30. Qd2 {[%clk 0:01:29.2]}
30... Qc5 {[%clk 0:01:31.6]} 31. b4 {[%clk 0:01:24.9]} 31... Qe5 {[%clk
0:01:29.9]} 32. Re3 {[%clk 0:01:15.2]} 32... Qf6 {[%clk 0:01:27.5]} 33. Rf3
{[%clk 0:00:45.6]} 33... Qe5 {[%clk 0:01:27.6]} 34. Re3 {[%clk 0:00:45.1]} 34...
Qf6 {[%clk 0:01:28.2]} 35. Rd3 {[%clk 0:00:44.1]} 35... Qe5 {[%clk 0:01:27.9]}
36. Rd4 {[%clk 0:00:44.4]} 36... Kg8 {[%clk 0:01:23]} 37. Re4 {[%clk 0:00:43.9]}
37... Qf6 {[%clk 0:01:22.8]} 38. Rd4 {[%clk 0:00:43]} 38... Qe5 {[%clk
0:01:22.9]} 39. Qd3 {[%clk 0:00:42.7]} 39... Rc7 {[%clk 0:01:19.5]} 40. Qd2
{[%clk 0:00:38.9]} 40... Kg7 {[%clk 0:01:14.8]} 41. Qd3 {[%clk 0:00:37.3]} 41...
axb4 {[%clk 0:01:04.9]} 42. axb4 {[%clk 0:00:35.6]} 42... b5 {[%clk 0:01:05.3]}
43. Qd2 {[%clk 0:00:34]} 43... Ra7 {[%clk 0:01:00.2]} 44. Re4 {[%clk 0:00:33.5]}
44... Qf6 {[%clk 0:00:59.9]} 45. Rf4 {[%clk 0:00:33.9]} 45... Qe5 {[%clk
0:01:00.6]} 46. Re4 {[%clk 0:00:34.5]} 46... Qf6 {[%clk 0:00:55.4]} 47. Qxd6
{[%clk 0:00:34.6]} 47... Qxf2 {[%clk 0:00:39.7]} 48. Qe5+ {[%clk 0:00:30.1]}
48... Qf6 {[%clk 0:00:39.9]} 49. Qxf6+ {[%clk 0:00:25]} 49... Kxf6 {[%clk
0:00:40.8]} 50. Bf1 {[%clk 0:00:25.6]} 50... Ra2+ {[%clk 0:00:13.5]} 51. Kg1
{[%clk 0:00:25.4]} 51... Bd7 {[%clk 0:00:12.7]} 52. Re3 {[%clk 0:00:22.2]} 52...
Bc6 {[%clk 0:00:11.8]} 53. Be2 {[%clk 0:00:21.9]} 53... Rc2 {[%clk 0:00:06.1]}
54. Kf2 {[%clk 0:00:22]} 54... Bd5 {[%clk 0:00:06.5]} 55. Ke1 {[%clk 0:00:22.3]}
55... Bc6 {[%clk 0:00:04.3]} 56. Kd1 {[%clk 0:00:22.6]} 56... Ra2 {[%clk
0:00:04.5]} 57. Kc1 {[%clk 0:00:23.2]} 57... Ra1+ {[%clk 0:00:04.4]} 58. Kb2
{[%clk 0:00:22.5]} 58... Rg1 {[%clk 0:00:05.1]} 59. c4 {[%clk 0:00:22.9]} 59...
bxc4 {[%clk 0:00:05.2]} 60. Bxc4 {[%clk 0:00:23.8]} 60... g5 {[%clk 0:00:05.3]}
61. hxg5+ {[%clk 0:00:23.3]} 61... Kxg5 {[%clk 0:00:06.2]} 62. Bxf7 {[%clk
0:00:23.7]} 62... Rf1 {[%clk 0:00:02.5]} 63. Kc3 {[%clk 0:00:23.3]} 63... Rxf7
{[%clk 0:00:01.9]} 64. Kd4 {[%clk 0:00:23.9]} 64... Rf5 {[%clk 0:00:02.3]} 65.
Re6 {[%clk 0:00:19.7]} 65... Bb5 {[%clk 0:00:02.7]} 66. Re8 {[%clk 0:00:19.4]}
66... Bxe8 {[%clk 0:00:02.7]} 0-1

[Event "Early-Titled-Tuesday-Blitz-March-12-2024"]
[Site "Chess.com"]
[Date "2024.03.12"]
[Round "10"]
[White "KetiTsatsalashvili"]
[Black "SaiAgni_98"]
[Result "1-0"]
[WhiteElo "2449"]
[BlackElo "2541"]
[TimeControl "180+1"]
[EndTime "9:54:01 PDT"]
[Termination "KetiTsatsalashvili won by resignation"]

1. d4 {[%clk 0:03:00.9]} 1... Nf6 {[%clk 0:02:58.6]} 2. Nf3 {[%clk 0:03:00.3]}
2... d6 {[%clk 0:02:58.7]} 3. c4 {[%clk 0:02:59.5]} 3... Nbd7 {[%clk 0:02:58.9]}
4. Nc3 {[%clk 0:02:59.8]} 4... e5 {[%clk 0:02:59.5]} 5. e4 {[%clk 0:02:58.3]}
5... Be7 {[%clk 0:02:59.2]} 6. Be2 {[%clk 0:02:56.6]} 6... O-O {[%clk
0:02:59.2]} 7. O-O {[%clk 0:02:56.5]} 7... c6 {[%clk 0:02:59.3]} 8. h3 {[%clk
0:02:55.9]} 8... a6 {[%clk 0:02:59.1]} 9. d5 {[%clk 0:02:49.9]} 9... c5 {[%clk
0:02:45.9]} 10. Nh2 {[%clk 0:02:45.1]} 10... Ne8 {[%clk 0:02:44.9]} 11. Be3
{[%clk 0:02:42.6]} 11... g6 {[%clk 0:02:43.9]} 12. Bh6 {[%clk 0:02:41.1]} 12...
Ng7 {[%clk 0:02:43.5]} 13. Qd2 {[%clk 0:02:36.4]} 13... f5 {[%clk 0:02:29.8]}
14. exf5 {[%clk 0:02:35.9]} 14... Rxf5 {[%clk 0:02:29.8]} 15. Bg4 {[%clk
0:02:33.8]} 15... Rf8 {[%clk 0:02:22.4]} 16. Be6+ {[%clk 0:02:31.8]} 16... Kh8
{[%clk 0:02:19.6]} 17. Ng4 {[%clk 0:02:28.1]} 17... Nf6 {[%clk 0:02:18.1]} 18.
Bxc8 {[%clk 0:02:07.2]} 18... Rxc8 {[%clk 0:02:08.6]} 19. Nxf6 {[%clk
0:02:07.4]} 19... Bxf6 {[%clk 0:02:02.9]} 20. Ne4 {[%clk 0:02:07.7]} 20... Rf7
{[%clk 0:01:54.7]} 21. a3 {[%clk 0:01:59.9]} 21... Nf5 {[%clk 0:01:49.3]} 22.
Bg5 {[%clk 0:01:56.3]} 22... Bxg5 {[%clk 0:01:42.3]} 23. Nxg5 {[%clk 0:01:57.2]}
23... Rf6 {[%clk 0:01:37.7]} 24. Ne6 {[%clk 0:01:48.3]} 24... Qe7 {[%clk
0:01:37.7]} 25. f4 {[%clk 0:01:44.7]} 25... exf4 {[%clk 0:01:27.3]} 26. Rxf4
{[%clk 0:01:37.2]} 26... Ng7 {[%clk 0:01:21.9]} 27. Rxf6 {[%clk 0:01:19.6]}
27... Qxf6 {[%clk 0:01:21.6]} 28. Rf1 {[%clk 0:01:14.8]} 28... Qe5 {[%clk
0:01:21.6]} 29. Re1 {[%clk 0:01:11.1]} 29... Qf6 {[%clk 0:01:21.3]} 30. Qf4
{[%clk 0:00:55]} 30... Qxf4 {[%clk 0:01:13.2]} 31. Nxf4 {[%clk 0:00:55.9]} 31...
Re8 {[%clk 0:01:11.7]} 32. Rxe8+ {[%clk 0:00:55.6]} 32... Nxe8 {[%clk
0:01:12.2]} 33. Ne6 {[%clk 0:00:55.9]} 33... Kg8 {[%clk 0:01:04.6]} 34. Kf2
{[%clk 0:00:55.5]} 34... Kf7 {[%clk 0:01:05]} 35. Nd8+ {[%clk 0:00:55.3]} 35...
Kf6 {[%clk 0:01:05.7]} 36. Nxb7 {[%clk 0:00:56]} 36... Ke5 {[%clk 0:01:05.8]}
37. Ke3 {[%clk 0:00:54.8]} 37... Ng7 {[%clk 0:00:55.7]} 38. g4 {[%clk
0:00:49.1]} 38... h5 {[%clk 0:00:52.1]} 39. Nd8 {[%clk 0:00:48.9]} 39... hxg4
{[%clk 0:00:49.8]} 40. hxg4 {[%clk 0:00:49.8]} 40... Kf6 {[%clk 0:00:45.1]} 41.
Kf4 {[%clk 0:00:47.6]} 41... Ne8 {[%clk 0:00:37.9]} 42. b4 {[%clk 0:00:43.8]}
42... cxb4 {[%clk 0:00:24.8]} 43. axb4 {[%clk 0:00:44.7]} 43... g5+ {[%clk
0:00:24.1]} 44. Ke4 {[%clk 0:00:44]} 44... Kg6 {[%clk 0:00:24.4]} 45. Nb7 {[%clk
0:00:41]} 45... Nf6+ {[%clk 0:00:22.3]} 46. Kf3 {[%clk 0:00:41.1]} 46... Ne8
{[%clk 0:00:19.7]} 47. c5 {[%clk 0:00:41.3]} 47... dxc5 {[%clk 0:00:19.6]} 48.
bxc5 {[%clk 0:00:42.2]} 48... Kf6 {[%clk 0:00:18.5]} 49. Ke4 {[%clk 0:00:40.3]}
49... Ke7 {[%clk 0:00:17.8]} 50. Kf5 {[%clk 0:00:36.5]} 50... Kd7 {[%clk
0:00:16.1]} 51. Kxg5 {[%clk 0:00:34.6]} 51... Nc7 {[%clk 0:00:16.7]} 52. d6
{[%clk 0:00:31.1]} 52... Ne6+ {[%clk 0:00:16.9]} 53. Kf6 {[%clk 0:00:31.5]}
53... a5 {[%clk 0:00:10.3]} 54. c6+ {[%clk 0:00:13.3]} 54... Kxc6 {[%clk
0:00:10]} 55. Kxe6 {[%clk 0:00:13.6]} 55... Kxb7 {[%clk 0:00:09.7]} 56. d7
{[%clk 0:00:12.7]} 56... a4 {[%clk 0:00:10.4]} 57. d8=Q {[%clk 0:00:12.1]} 57...
a3 {[%clk 0:00:11.1]} 58. Qa5 {[%clk 0:00:12.2]} 58... a2 {[%clk 0:00:09.7]} 59.
Qxa2 {[%clk 0:00:12.2]} 59... Kc8 {[%clk 0:00:10]} 60. Qa6+ {[%clk 0:00:11.1]}
60... Kb8 {[%clk 0:00:08.8]} 61. Qb6+ {[%clk 0:00:09.2]} 61... Ka8 {[%clk
0:00:09.7]} 62. Qc6+ {[%clk 0:00:09.3]} 62... Kb8 {[%clk 0:00:10.6]} 63. Qd7
{[%clk 0:00:09.2]} 63... Ka8 {[%clk 0:00:10.9]} 64. Kd6 {[%clk 0:00:09.8]} 1-0